Workbook

Sheet Лист1
A1: Школа | F1: Утвердил: | G1: должность
A2: Типовое примерное меню приготавливаемых блюд с 1 января 2026 года для учащихся 1-4 классов | G2: фамилия
A3: Возрастная категория | E3: 7-11 лет | G3: дата | H3: 1 | I3: 1 | J3: 2026
H4: день | I4: месяц | J4: год
A5: Неделя | B5: День недели | C5: Прием пищи | D5: Раздел меню | E5: Блюда | F5: Вес блюда, г | G5: Белки | H5: Жиры | I5: Углеводы | J5: Калорийность | K5: № рецептуры | L5: Цена
A6: 1 | B6: 1 | C6: Завтрак | D6: гор.блюдо | E6: Омлет натуральный | F6: 150 | G6: 13.9 | H6: 14.4 | I6: 3.4 | J6: 199.0 | K6: 210
D7: гор.напиток | E7: Чай с сахаром | F7: 200 | G7: 0.2 | H7: 0.1 | I7: 5.0 | J7: 21.0 | K7: 376
D8: хлеб бел. | E8: Батон витаминный с микронутриентами/сыр порционно/масло сливочное | F8: 58 | G8: 6.9 | H8: 13.7 | I8: 16.1 | J8: 215
D9: фрукты | E9: Фрукты свежие | F9: 120 | G9: 1.0 | H9: 0.2 | I9: 9.0 | J9: 42 | K9: 338
D11: итого | F11: =F6+F10+F7+F8+F9 -> 528 | G11: =SUM(G6:G10) -> 22.0 | H11: =SUM(H6:H10) -> 28.4 | I11: =SUM(I6:I10) -> 33.5 | J11: =SUM(J6:J10) -> 477 | L11: 96.63
A12: =A6 -> 1 | B12: =B6 -> 1 | C12: Обед | D12: 1 блюдо | E12: Суп картофельный с крупой, с рыбными консервами | F12: 200 | G12: 4.3 | H12: 5.3 | I12: 13.8 | J12: 120.0 | K12: 101
D13: 2 блюдо | E13: Плов из говядины/икра кабачковая | F13: 200 | G13: 9.1 | H13: 11.0 | I13: 29.6 | J13: 253 | K13: 265
D14: сладкое | E14: Кекс для детского питания | F14: 28 | G14: 1.7 | H14: 6.2 | I14: 15.7 | J14: 124
D15: напиток | E15: Сок фруктовый | F15: 200 | G15: 0.2 | H15: 0.1 | I15: 10.1 | J15: 41 | K15: 389
D16: хлеб бел. | E16: Батон витаминный с микронутриентами | F16: 40 | G16: 3.3 | H16: 0.8 | I16: 22.9 | J16: 114.0
D17: хлеб черн. | E17: Хлеб полезный с микронутриентами | F17: 25 | G17: 1.8 | H17: 0.3 | I17: 10.8 | J17: 53
D20: итого | F20: =SUM(F12:F17) -> 693 | G20: =SUM(G12:G17) -> 20.4 | H20: =SUM(H12:H17) -> 23.7 | I20: =SUM(I12:I17) -> 102.9 | J20: =SUM(J12:J17) -> 705 | L20: 115.63
A21: =A6 -> 1 | B21: =B6 -> 1 | C21: Итого за день: | F21: =F11+F20 -> 1221 | G21: =G11+G20 -> 42.4 | H21: =H11+H20 -> 52.1 | I21: =I11+I20 -> 136.4 | J21: =J11+J20 -> 1182 | L21: =L11+L20 -> 212.26
A22: 1 | B22: 2 | C22: Завтрак | D22: гор.блюдо | E22: Блины "Домашние" с вареньем | F22: 198 | G22: 10.1 | H22: 24.7 | I22: 54.2 | J22: 479 | K22: 864/2022
D23: гор.напиток | E23: Чай с сахаром | F23: 200 | G23: 0.2 | H23: 0.1 | I23: 5.0 | J23: 21 | K23: 376
D24: фрукты | E24: Фрукты свежие | F24: 171 | G24: 0.7 | H24: 0.6 | I24: 17.6 | J24: 77 | K24: 338
D26: итого | F26: =SUM(F22:F25) -> 569 | G26: =SUM(G22:G25) -> 11.0 | H26: =SUM(H22:H25) -> 25.4 | I26: =SUM(I22:I25) -> 76.8 | J26: =SUM(J22:J25) -> 577 | L26: 96.63
A27: =A22 -> 1 | B27: =B22 -> 2 | C27: Обед | D27: 1 блюдо | E27: Борщ со свежей капустой и картофелем, зеленью | F27: 200 | G27: 1.4 | H27: 3.9 | I27: 7.9 | J27: 72 | K27: 82
D28: 2 блюдо | E28: Котлета рубленная из куриного филе | F28: 100 | G28: 20.2 | H28: 9.0 | I28: 16.8 | J28: 229 | K28: 295
D29: 2 блюдо | E29: Рожки отварные | F29: 150 | G29: 5.4 | H29: 4.9 | I29: 27.9 | J29: 178 | K29: 309
D30: сладкое | E30: Сочник с фруктовой начинкой | F30: 70 | G30: 3.5 | H30: 10.9 | I30: 43.3 | J30: 289
D31: напиток | E31: Компот из кураги | F31: 200 | G31: 1.1 | H31: 0.0 | I31: 13.2 | J31: 86 | K31: 348
D32: хлеб бел. | E32: Батон витаминный с микронутриентами | F32: 44 | G32: 3.5 | H32: 0.9 | I32: 25.2 | J32: 123.2
D33: хлеб черн. | E33: Хлеб полезный с микронутриентами | F33: 25 | G33: 1.8 | H33: 0.3 | I33: 10.8 | J33: 53
D35: итого | F35: =SUM(F27:F34) -> 789 | G35: =SUM(G27:G34) -> 36.9 | H35: =SUM(H27:H34) -> 29.9 | I35: =SUM(I27:I34) -> 145.1 | J35: =SUM(J27:J34) -> 1030 | L35: 115.63
A36: =A22 -> 1 | B36: =B22 -> 2 | C36: Итого за день: | F36: =F26+F35 -> 1358 | G36: =G26+G35 -> 47.9 | H36: =H26+H35 -> 55.3 | I36: =I26+I35 -> 221.9 | J36: =J26+J35 -> 1607 | L36: =L26+L35 -> 212.26
A37: 1 | B37: 3 | C37: Завтрак | D37: гор.блюдо | E37: Каша молочная рисовая с маслом | F37: 155 | G37: 4.0 | H37: 6.1 | I37: 22.8 | J37: 163 | K37: ТТК 147
D38: гор.напиток | E38: Чай с сахаром | F38: 200 | G38: 0.2 | H38: 0.1 | I38: 5.0 | J38: 21 | K38: 376
D39: кисломол. | E39: Йогурт | F39: 100 | G39: 2.8 | H39: 2.8 | I39: 11.5 | J39: 82
D40: хлеб бел. | E40: Батон витаминный с микронутриентами/масло шоколадное | F40: 60 | G40: 3.8 | H40: 10.2 | I40: 29.0 | J40: 224
D42: итого | F42: =SUM(F37:F41) -> 515 | G42: =SUM(G37:G41) -> 10.8 | H42: =SUM(H37:H41) -> 19.2 | I42: =SUM(I37:I41) -> 68.3 | J42: =SUM(J37:J41) -> 490 | L42: 96.63
A43: =A37 -> 1 | B43: =B37 -> 3 | C43: Обед | D43: 1 блюдо | E43: Суп сырный с гренками, зеленью | F43: 215 | G43: 3.8 | H43: 4.8 | I43: 21.7 | J43: 145 | K43: ТТК 370
D44: 2 блюдо | E44: Ёжики Аппетитные | F44: 150 | G44: 11.3 | H44: 11.8 | I44: 12.9 | J44: 202 | K44: ТТК 274
D45: 2 блюдо | E45: Пюре картофельное | F45: 180 | G45: 3.8 | H45: 6.3 | I45: 14.5 | J45: 130 | K45: 312
D46: напиток | E46: Напиток из шиповника | F46: 200 | G46: 0.7 | H46: 0.3 | I46: 19.6 | J46: 84 | K46: 388
D47: фрукты | E47: Фрукты свежие | F47: 140 | G47: 0.5 | H47: 0.5 | I47: 13.7 | J47: 62 | K47: 338
D48: хлеб бел. | E48: Батон витаминный с микронутриентами | F48: 25 | G48: 2.0 | H48: 0.5 | I48: 14.3 | J48: 70.0
D49: хлеб черн. | E49: Хлеб полезный с микронутриентами | F49: 25 | G49: 1.8 | H49: 0.3 | I49: 10.8 | J49: 53
D52: итого | F52: =SUM(F43:F51) -> 935 | G52: =SUM(G43:G51) -> 23.9 | H52: =SUM(H43:H51) -> 24.5 | I52: =SUM(I43:I51) -> 107.5 | J52: =SUM(J43:J51) -> 746 | L52: 115.63
A53: =A37 -> 1 | B53: =B37 -> 3 | C53: Итого за день: | F53: =F42+F52 -> 1450 | G53: =G42+G52 -> 34.7 | H53: =H42+H52 -> 43.7 | I53: =I42+I52 -> 175.8 | J53: =J42+J52 -> 1236 | L53: =L42+L52 -> 212.26
A54: 1 | B54: 4 | C54: Завтрак | D54: гор.блюдо | E54: Запеканка из творога со сгущённым молоком | F54: 175 | G54: 25.4 | H54: 19.7 | I54: 35.8 | J54: 422 | K54: 223
D55: гор.напиток | E55: Чай с сахаром | F55: 200 | G55: 0.2 | H55: 0.1 | I55: 5.0 | J55: 21 | K55: 376
D56: фрукты | E56: Фрукты свежие | F56: 140 | G56: 0.5 | H56: 0.5 | I56: 13.7 | J56: 62 | K56: 338
D57: хлеб бел. | E57: Батон витаминный с микронутриентами/масло сливочное | F57: 30 | G57: 1.7 | H57: 7.7 | I57: 11.5 | J57: 122
D59: итого | F59: =SUM(F54:F58) -> 545 | G59: =SUM(G54:G58) -> 27.8 | H59: =SUM(H54:H58) -> 28.0 | I59: =SUM(I54:I58) -> 66.0 | J59: =SUM(J54:J58) -> 627 | L59: 96.63
A60: =A54 -> 1 | B60: =B54 -> 4 | C60: Обед | D60: 1 блюдо | E60: Солянка домашняя со сметаной, зеленью | F60: 210 | G60: 6.4 | H60: 5.9 | I60: 5.8 | J60: 99 | K60: 157
D61: 2 блюдо | E61: Печень по-строгановски | F61: 100 | G61: 12.0 | H61: 9.7 | I61: 7.6 | J61: 166 | K61: 431/2004
D62: 2 блюдо | E62: Вермишель отварная | F62: 150 | G62: 5.4 | H62: 4.9 | I62: 27.9 | J62: 178 | K62: 309
D63: сладкое | E63: Кекс для детского питания | F63: 28 | G63: 1.7 | H63: 6.2 | I63: 15.7 | J63: 124
D64: напиток | E64: Компот из ягод | F64: 200 | G64: 0.2 | H64: 0.1 | I64: 12.0 | J64: 49 | K64: ТТК 206
D65: хлеб бел. | E65: Батон витаминный с микронутриентами | F65: 43 | G65: 3.4 | H65: 0.9 | I65: 24.6 | J65: 120
D66: хлеб черн. | E66: Хлеб полезный с микронутриентами | F66: 25 | G66: 1.8 | H66: 0.3 | I66: 10.8 | J66: 53
D69: итого | F69: =SUM(F60:F68) -> 756 | G69: =SUM(G60:G68) -> 30.9 | H69: =SUM(H60:H68) -> 28.0 | I69: =SUM(I60:I68) -> 104.4 | J69: =SUM(J60:J68) -> 789 | L69: 115.63
A70: =A54 -> 1 | B70: =B54 -> 4 | C70: Итого за день: | F70: =F59+F69 -> 1301 | G70: =G59+G69 -> 58.7 | H70: =H59+H69 -> 56.0 | I70: =I59+I69 -> 170.4 | J70: =J59+J69 -> 1416 | L70: =L59+L69 -> 212.26
A71: 1 | B71: 5 | C71: Завтрак | D71: гор.блюдо | E71: Котлета куриная с сыром | F71: 90 | G71: 11.9 | H71: 8.1 | I71: 7.9 | J71: 152 | K71: ТТК477
D72: гор.блюдо | E72: Рис отварной | F72: 150 | G72: 3.7 | H72: 6.3 | I72: 28.5 | J72: 185 | K72: 302
D73: гор.напиток | E73: Чай с сахаром | F73: 200 | G73: 0.2 | H73: 0.1 | I73: 5.0 | J73: 21 | K73: 376
D74: хлеб бел. | E74: Батон, витаминный с микронутриентами | F74: 25 | G74: 2.0 | H74: 0.5 | I74: 14.3 | J74: 70
D75: фрукты | E75: Фрукты свежие | F75: 120 | G75: 1.0 | H75: 0.2 | I75: 9.0 | J75: 42 | K75: 338
D77: итого | F77: =SUM(F71:F75) -> 585 | G77: =SUM(G71:G75) -> 18.8 | H77: =SUM(H71:H75) -> 15.2 | I77: =SUM(I71:I75) -> 64.7 | J77: =SUM(J71:J75) -> 470 | L77: 96.63
A78: =A71 -> 1 | B78: =B71 -> 5 | C78: Обед | D78: 1 блюдо | E78: Суп куриный с зеленью | F78: 200 | G78: 1.8 | H78: 2.4 | I78: 9.4 | J78: 77 | K78: 278/2022
D79: 2 блюдо | E79: Митболлы в томатном соусе | F79: 150 | G79: 19.8 | H79: 18.2 | I79: 11.5 | J79: 286 | K79: ТТК 65
D80: 2 блюдо | E80: Пюре картофельное | F80: 150 | G80: 3.1 | H80: 5.2 | I80: 12.1 | J80: 108 | K80: 312
D81: напиток | E81: Сок фруктовый | F81: 200 | G81: 0.2 | H81: 0.1 | I81: 10.1 | J81: 41 | K81: ТТК 89
D82: хлеб черн. | E82: Хлеб полезный с микронутриентами | F82: 25 | G82: 1.8 | H82: 0.3 | I82: 10.8 | J82: 53
D83: хлеб бел. | E83: Батон витаминный с микронутриентами | F83: 50 | G83: 4.0 | H83: 1.0 | I83: 28.6 | J83: 140
D85: итого | F85: =SUM(F78:F84) -> 775 | G85: =SUM(G78:G84) -> 30.7 | H85: =SUM(H78:H84) -> 27.2 | I85: =SUM(I78:I84) -> 82.5 | J85: =SUM(J78:J84) -> 705 | L85: 115.63
A86: =A71 -> 1 | B86: =B71 -> 5 | C86: Итого за день: | F86: =F77+F85 -> 1360 | G86: =G77+G85 -> 49.5 | H86: =H77+H85 -> 42.4 | I86: =I77+I85 -> 147.2 | J86: =J77+J85 -> 1175 | L86: =L77+L85 -> 212.26
A87: 2 | B87: 1 | C87: Завтрак | D87: гор.блюдо | E87: Пудинг "Лакомка" с вареньем | F87: 170 | G87: 14.1 | H87: 9.3 | I87: 53.3 | J87: 353 | K87: ТТК 57
D88: гор.напиток | E88: Чай с сахаром | F88: 200 | G88: 0.2 | H88: 0.1 | I88: 5.0 | J88: 21 | K88: 376
D89: хлеб бел. | E89: Батон, витаминный с микронутриентами/масло сливочное | F89: 40 | G89: 2.5 | H89: 7.9 | I89: 17.3 | J89: 151
D90: фрукты | E90: Фрукты свежие | F90: 140 | G90: 0.5 | H90: 0.5 | I90: 13.7 | J90: 62 | K90: 338
D93: итого | F93: =SUM(F87:F92) -> 550 | G93: =SUM(G87:G92) -> 17.3 | H93: =SUM(H87:H92) -> 17.8 | I93: =SUM(I87:I92) -> 89.3 | J93: =SUM(J87:J92) -> 587 | L93: 96.63
A94: =A87 -> 2 | B94: =B87 -> 1 | C94: Обед | D94: 1 блюдо | E94: Суп из овощей, с зеленью | F94: 200 | G94: 1.4 | H94: 4.0 | I94: 7.6 | J94: 72 | K94: 88
A95: =A88 -> 0 | D95: 2 блюдо | E95: Гуляш из говядины | F95: 100 | G95: 10.6 | H95: 10.5 | I95: 2.4 | J95: 146 | K95: 260
D96: 2 блюдо | E96: Каша гречневая рассыпчатая | F96: 150 | G96: 8.5 | H96: 7.3 | I96: 36.6 | J96: 246 | K96: 302
D97: сладкое | E97: Вафли | F97: 20 | G97: 1.4 | H97: 5.8 | I97: 29.0 | J97: 104
D98: напиток | E98: Сок фруктовый | F98: 200 | G98: 0.2 | H98: 0.1 | I98: 10.1 | J98: 41
D99: хлеб бел. | E99: Батон, витаминный с микронутриентами | F99: 40 | G99: 3.2 | H99: 0.8 | I99: 22.9 | J99: 112.0
D100: хлеб черн. | E100: Хлеб полезный с микронутриентами | F100: 25 | G100: 1.8 | H100: 0.3 | I100: 10.8 | J100: 53
D102: итого | F102: =SUM(F94:F101) -> 735 | G102: =SUM(G94:G101) -> 27.1 | H102: =SUM(H94:H101) -> 28.8 | I102: =SUM(I94:I101) -> 119.4 | J102: =SUM(J94:J101) -> 774 | L102: 115.63
A103: =A87 -> 2 | B103: =B87 -> 1 | C103: Итого за день: | F103: =F93+F102 -> 1285 | G103: =G93+G102 -> 44.4 | H103: =H93+H102 -> 46.6 | I103: =I93+I102 -> 208.7 | J103: =J93+J102 -> 1361 | L103: =L93+L102 -> 212.26
A104: 2 | B104: 2 | C104: Завтрак | D104: гор.блюдо | E104: Каша молочная "Дружба" с маслом | F104: 155 | G104: 4.7 | H104: 6.6 | I104: 22.5 | J104: 168 | K104: ТТК 147
D105: гор.напиток | E105: Чай с сахаром | F105: 200 | G105: 0.2 | H105: 0.1 | I105: 5.0 | J105: 21 | K105: 377
D106: хлеб бел. | E106: Батон, витаминный с микронутриентами/масло шоколадное | F106: 56 | G106: 3.5 | H106: 10.1 | I106: 26.8 | J106: 213
D107: кисломол. | E107: Йогур | F107: 100 | G107: 2.8 | H107: 2.8 | I107: 11.5 | J107: 82
D109: итого | F109: =SUM(F104:F107) -> 511 | G109: =SUM(G104:G107) -> 11.2 | H109: =SUM(H104:H107) -> 19.6 | I109: =SUM(I104:I107) -> 65.8 | J109: =SUM(J104:J107) -> 484 | L109: 96.63
A110: =A104 -> 2 | B110: =B104 -> 2 | C110: Обед | D110: 1 блюдо | E110: Бульон с куриным филе, гренками, зеленью | F110: 240 | G110: 9.5 | H110: 0.8 | I110: 14.0 | J110: 102 | K110: 177/2004
D111: 2 блюдо | E111: Биточки домашние | F111: 100 | G111: 13.8 | H111: 11.3 | I111: 10.1 | J111: 198 | K111: 271
D112: 2 блюдо | E112: Вермишель отварная | F112: 150 | G112: 5.4 | H112: 4.9 | I112: 27.9 | J112: 178 | K112: 309
D113: фрукты | E113: Фрукты свежие | F113: 140 | G113: 0.5 | H113: 0.5 | I113: 13.7 | J113: 62 | K113: 338
D114: напиток | E114: Компот из апельсинов | F114: 200 | G114: 0.2 | H114: 0.1 | I114: 17.0 | J114: 69 | K114: ТТК 89
D115: хлеб бел. | E115: Батон, витаминный с микронутриентами | F115: 25 | G115: 2.0 | H115: 0.5 | I115: 14.3 | J115: 70
D116: хлеб черн. | E116: Хлеб полезный с микронутриентами | F116: 20 | G116: 1.4 | H116: 0.2 | I116: 8.6 | J116: 42
F118: =SUM(F110:F116) -> 875 | G118: =SUM(G110:G116) -> 32.8 | H118: =SUM(H110:H116) -> 18.3 | I118: =SUM(I110:I116) -> 105.6 | J118: =SUM(J110:J116) -> 721 | L118: 115.63
A119: =A104 -> 2 | B119: =B104 -> 2 | C119: Итого за день: | F119: =F109+F118 -> 1386 | G119: =G109+G118 -> 44.0 | H119: =H109+H118 -> 37.9 | I119: =I109+I118 -> 171.4 | J119: =J109+J118 -> 1205 | L119: =L109+L118 -> 212.26
A120: 2 | B120: 3 | C120: Завтрак | D120: гор.блюдо | E120: Плов из филе индейки | F120: 150 | G120: 8.0 | H120: 12.8 | I120: 34.0 | J120: 283 | K120: 291
D121: фрукты | E121: Фрукты свежие | F121: 120 | G121: 1.0 | H121: 0.2 | I121: 9.0 | J121: 42 | K121: 338
D122: гор.напиток | E122: Кофейный напиток быстрорастворимый | F122: 200 | G122: 2.6 | H122: 1.8 | I122: 16.6 | J122: 93 | K122: 245/1
D123: хлеб бел. | E123: Батон, витаминный с микронутриентами/масло сливочное | F123: 47 | G123: 3.1 | H123: 8.0 | I123: 21.3 | J123: 170
D126: итого | F126: =SUM(F120:F124) -> 517 | G126: =SUM(G120:G124) -> 14.7 | H126: =SUM(H120:H124) -> 22.8 | I126: =SUM(I120:I124) -> 80.9 | J126: =SUM(J120:J124) -> 588 | L126: 96.63
A127: 2 | B127: 3 | C127: Обед | D127: 1 блюдо | E127: Рассольник Ленинградский с зеленью | F127: 200 | G127: 1.7 | H127: 4.1 | I127: 13.8 | J127: 99 | K127: 96
D128: 2 блюдо | E128: Котлета рыбная | F128: 100 | G128: 15.3 | H128: 12.5 | I128: 18.4 | J128: 246 | K128: 234
D129: 2 блюдо | E129: Пюре картофельное/Капуста квашеная с маслом растительным, сахаром | F129: 200 | G129: 3.9 | H129: 7.8 | I129: 18.1 | J129: 158 | K129: 312
D130: сладкое | E130: Кекс для детского питания | F130: 28 | G130: 1.7 | H130: 6.2 | I130: 15.7 | J130: 124
D131: напиток | E131: Компот из кураги | F131: 200 | G131: 1.1 | H131: 0.0 | I131: 13.2 | J131: 86 | K131: 348
D132: хлеб бел. | E132: Батон, витаминный с микронутриентами | F132: 33 | G132: 2.6 | H132: 0.7 | I132: 18.9 | J132: 92.4
D133: хлеб черн. | E133: Хлеб полезный с микронутриентами | F133: 25 | G133: 1.8 | H133: 0.3 | I133: 10.8 | J133: 53
D135: итого | F135: =SUM(F127:F134) -> 786 | G135: =SUM(G127:G134) -> 28.1 | H135: =SUM(H127:H134) -> 31.6 | I135: =SUM(I127:I134) -> 108.9 | J135: =SUM(J127:J134) -> 858 | L135: 115.63
A136: 2 | B136: 3 | C136: Итого за день: | F136: =F126+F135 -> 1303 | G136: =G126+G135 -> 42.8 | H136: =H126+H135 -> 54.4 | I136: =I126+I135 -> 189.8 | J136: =J126+J135 -> 1446 | L136: =L126+L135 -> 212.26
A137: 2 | B137: 4 | C137: Завтрак | D137: гор.блюдо | E137: Макароны с сыром | F137: 180 | G137: 10.2 | H137: 13.5 | I137: 29.0 | J137: 278 | K137: 204
D138: гор.напиток | E138: Кисель плодово-ягодный витаминизированный | F138: 200 | G138: 0.0 | H138: 0.0 | I138: 28.0 | J138: 112 | K138: ТТК 243
D139: хлеб бел. | E139: Батон, витаминный с микронутриентами | F139: 30 | G139: 2.4 | H139: 0.6 | I139: 17.2 | J139: 85
D140: кисломол. | E140: Творог с фруктовым наполнителем для детского питания | F140: 100 | G140: 7.6 | H140: 4.2 | I140: 11.1 | J140: 113
D142: итого | F142: =SUM(F137:F140) -> 510 | G142: =SUM(G137:G140) -> 20.2 | H142: =SUM(H137:H140) -> 18.3 | I142: =SUM(I137:I140) -> 85.3 | J142: =SUM(J137:J140) -> 588 | L142: 96.63
A143: =A137 -> 2 | B143: =B137 -> 4 | C143: Обед | D143: 1 блюдо | E143: Борщ "Сибирский" с зеленью | F143: 200 | G143: 0.9 | H143: 4.9 | I143: 7.8 | J143: 81 | K143: 111/2004
D144: 2 блюдо | E144: Митболлы в томатном соусе | F144: 150 | G144: 19.8 | H144: 18.2 | I144: 11.5 | J144: 286 | K144: ТТК 65
D145: 2 блюдо | E145: Рис отварной/кукуруза консервированная | F145: 190 | G145: 7.8 | H145: 8.3 | I145: 52.5 | J145: 315 | K145: 304
D146: напиток | E146: Компот из ягод | F146: 200 | G146: 0.2 | H146: 0.1 | I146: 12.0 | J146: 49 | K146: ТТК 206
D147: хлеб бел. | E147: Батон, витаминный с микронутриентами | F147: 25 | G147: 2.0 | H147: 0.5 | I147: 14.3 | J147: 70
D148: хлеб черн. | E148: Хлеб полезный с микронутриентами | F148: 25 | G148: 1.8 | H148: 0.3 | I148: 10.8 | J148: 53
D151: итого | F151: =SUM(F143:F149) -> 790 | G151: =SUM(G143:G149) -> 32.5 | H151: =SUM(H143:H149) -> 32.3 | I151: =SUM(I143:I149) -> 108.9 | J151: =SUM(J143:J149) -> 854 | L151: 115.63
A152: =A137 -> 2 | B152: =B137 -> 4 | C152: Итого за день: | F152: =F142+F151 -> 1300 | G152: =G142+G151 -> 52.7 | H152: =H142+H151 -> 50.6 | I152: =I142+I151 -> 194.2 | J152: =J142+J151 -> 1442 | L152: =L142+L151 -> 212.26
A153: 2 | B153: 5 | C153: Завтрак | D153: гор.блюдо | E153: Бифштекс домашний | F153: 90 | G153: 8.1 | H153: 13.4 | I153: 15.9 | J153: 217 | K153: ТТК 477
D154: гор.блюдо | E154: Рожки отварные | F154: 150 | G154: 5.4 | H154: 4.9 | I154: 27.9 | J154: 178 | K154: 309
D155: фрукты | E155: Фрукты свежие | F155: 140 | G155: 0.5 | H155: 0.5 | I155: 13.7 | J155: 62 | K155: 338
D156: гор.напиток | E156: Чай с сахаром | F156: 200 | G156: 0.2 | H156: 0.1 | I156: 5.0 | J156: 21 | K156: 376
D157: хлеб бел. | E157: Батон, витаминный с микронутриентами/сыр плавленный | F157: 37.5 | G157: 3.2 | H157: 3.5 | I157: 12.5 | J157: 94
D159: итого | F159: =SUM(F153:F157) -> 617.5 | G159: =SUM(G153:G157) -> 17.4 | H159: =SUM(H153:H157) -> 22.4 | I159: =SUM(I153:I157) -> 75.0 | J159: =SUM(J153:J157) -> 572 | L159: 96.63
A160: 2 | B160: 5 | C160: Обед | D160: 1 блюдо | E160: Суп картофельный с горохом, зеленью | F160: 200 | G160: 4.7 | H160: 4.4 | I160: 15.7 | J160: 122 | K160: 102
D161: 2 блюдо | E161: Филе куриное панированное | F161: 100 | G161: 24.0 | H161: 16.7 | I161: 12.4 | J161: 296 | K161: ТТК 242
D162: 2 блюдо | E162: Пюре картофельное | F162: 180 | G162: 3.8 | H162: 6.3 | I162: 14.5 | J162: 130 | K162: 312
D163: закуска | E163: Капуста квашеная с маслом растительным, сахаром (доп.гарнир) | F163: 60 | G163: 0.9 | H163: 3.0 | I163: 6.8 | J163: 59 | K163: ТТК 275
D164: напиток | E164: Сок фруктовый | F164: 200 | G164: 0.2 | H164: 0.1 | I164: 10.1 | J164: 41 | K164: 389
D165: хлеб бел. | E165: Батон, витаминный с микронутриентами | F165: 25 | G165: 2.0 | H165: 0.5 | I165: 14.3 | J165: 70
D166: хлеб черн. | E166: Хлеб полезный с микронутриентами | F166: 25 | G166: 1.8 | H166: 0.3 | I166: 10.8 | J166: 53
D167: итого | F167: =SUM(F160:F166) -> 790 | G167: =SUM(G160:G166) -> 37.4 | H167: =SUM(H160:H166) -> 31.3 | I167: =SUM(I160:I166) -> 84.6 | J167: =SUM(J160:J166) -> 771 | L167: 115.63
A168: 2 | B168: 5 | C168: Итого за день: | F168: =F159+F167 -> 1407.5 | G168: =G159+G167 -> 54.8 | H168: =H159+H167 -> 53.7 | I168: =I159+I167 -> 159.6 | J168: =J159+J167 -> 1343 | L168: =L159+L167 -> 212.26
A169: 3 | B169: 1 | C169: Завтрак | D169: гор.блюдо | E169: Омлет натуральный | F169: 150 | G169: 13.9 | H169: 14.4 | I169: 3.4 | J169: 199 | K169: 210
D170: гор.напиток | E170: Чай с сахаром | F170: 200 | G170: 0.2 | H170: 0.1 | I170: 5.0 | J170: 21 | K170: 376
D171: хлеб бел. | E171: Батон витаминный с микронутриентами/сыр порционно/масло сливочное | F171: 58 | G171: 6.9 | H171: 13.7 | I171: 16.1 | J171: 215.0
D172: фрукты | E172: Фрукты свежие | F172: 120 | G172: 1.0 | H172: 0.2 | I172: 9.0 | J172: 42 | K172: 338
D174: итого | F174: =F169+F173+F170+F171+F172 -> 528 | G174: =SUM(G169:G173) -> 22.0 | H174: =SUM(H169:H173) -> 28.4 | I174: =SUM(I169:I173) -> 33.5 | J174: =SUM(J169:J173) -> 477 | L174: 96.63
A175: =A169 -> 3 | B175: =B169 -> 1 | C175: Обед | D175: 1 блюдо | E175: Суп сырный с гренками, зеленью | F175: 215 | G175: 3.8 | H175: 4.8 | I175: 21.7 | J175: 145 | K175: ТТК 370
D176: 2 блюдо | E176: Плов из говядины/икра кабачковая | F176: 200 | G176: 9.2 | H176: 11.0 | I176: 29.6 | J176: 253 | K176: 265
D177: сладкое | E177: Печенье | F177: 20 | G177: 1.5 | H177: 2.8 | I177: 13.6 | J177: 86
D178: напиток | E178: Сок фруктовый | F178: 200 | G178: 0.2 | H178: 0.1 | I178: 10.1 | J178: 41 | K178: 389
D179: хлеб бел. | E179: Батон витаминный с микронутриентами | F179: 46 | G179: 3.7 | H179: 0.9 | I179: 26.3 | J179: 129
D180: хлеб черн. | E180: Хлеб полезный с микронутриентами | F180: 25 | G180: 1.8 | H180: 0.3 | I180: 10.8 | J180: 53
D183: итого | F183: =SUM(F175:F180) -> 706 | G183: =SUM(G175:G180) -> 20.2 | H183: =SUM(H175:H180) -> 19.9 | I183: =SUM(I175:I180) -> 112.1 | J183: =SUM(J175:J180) -> 707 | L183: 115.63
A184: =A169 -> 3 | B184: =B169 -> 1 | C184: Итого за день: | F184: =F174+F183 -> 1234 | G184: =G174+G183 -> 42.2 | H184: =H174+H183 -> 48.3 | I184: =I174+I183 -> 145.6 | J184: =J174+J183 -> 1184 | L184: =L174+L183 -> 212.26
A185: 3 | B185: 2 | C185: Завтрак | D185: гор.блюдо | E185: Каша молочная "Дружба" с маслом | F185: 155 | G185: 4.7 | H185: 6.6 | I185: 22.5 | J185: 168 | K185: ТТК 147
D186: гор.напиток | E186: Чай с сахаром | F186: 200 | G186: 0.2 | H186: 0.1 | I186: 5.0 | J186: 21 | K186: 376
D187: хлеб бел. | E187: Батон витаминный с микронутриентами/масло шоколадное | F187: 56 | G187: 3.5 | H187: 10.1 | I187: 26.8 | J187: 213
D188: кисломол. | E188: Йогурт | F188: 100 | G188: 2.8 | H188: 2.8 | I188: 11.5 | J188: 82
D190: итого | F190: =SUM(F185:F189) -> 511 | G190: =SUM(G185:G189) -> 11.2 | H190: =SUM(H185:H189) -> 19.6 | I190: =SUM(I185:I189) -> 65.8 | J190: =SUM(J185:J189) -> 484 | L190: 96.63
A191: =A185 -> 3 | B191: =B185 -> 2 | C191: Обед | D191: 1 блюдо | E191: Суп куриный с зеленью | F191: 200 | G191: 1.8 | H191: 2.4 | I191: 9.4 | J191: 77 | K191: 278/2022
D192: 2 блюдо | E192: Жаркое по-домашнему | F192: 150 | G192: 9.3 | H192: 9.7 | I192: 14.0 | J192: 182 | K192: 259
D193: закуска | E193: Капуста квашеная с маслом растительным, сахаром (доп.гарнир) | F193: 75 | G193: 1.2 | H193: 3.9 | I193: 9.0 | J193: 75 | K193: ТТК 275
D194: сладкое | E194: Вафли | F194: 20 | G194: 1.4 | H194: 5.8 | I194: 29.0 | J194: 104
D195: напиток | E195: Компот из апельсинов | F195: 200 | G195: 0.2 | H195: 0.1 | I195: 17.0 | J195: 69 | K195: ТТК 89
D196: хлеб бел. | E196: Батон витаминный с микронутриентами | F196: 54 | G196: 4.3 | H196: 1.1 | I196: 30.9 | J196: 151
D197: хлеб черн. | E197: Хлеб полезный с микронутриентами | F197: 25 | G197: 1.8 | H197: 0.3 | I197: 10.8 | J197: 53
D199: итого | F199: =SUM(F191:F198) -> 724 | G199: =SUM(G191:G198) -> 20.0 | H199: =SUM(H191:H198) -> 23.3 | I199: =SUM(I191:I198) -> 120.1 | J199: =SUM(J191:J198) -> 711 | L199: 115.63
A200: =A185 -> 3 | B200: =B185 -> 2 | C200: Итого за день: | F200: =F190+F199 -> 1235 | G200: =G190+G199 -> 31.2 | H200: =H190+H199 -> 42.9 | I200: =I190+I199 -> 185.9 | J200: =J190+J199 -> 1195 | L200: =L190+L199 -> 212.26
A201: 3 | B201: 3 | C201: Завтрак | D201: гор.блюдо | E201: Оладьи-сэндвичи с варёной сгущёнкой | F201: 180 | G201: 9.9 | H201: 18.9 | I201: 94.5 | J201: 594 | K201: 875/2022
D202: гор.напиток | E202: Чай с сахаром | F202: 200 | G202: 0.2 | H202: 0.1 | I202: 5.0 | J202: 21 | K202: 376
D203: фрукты | E203: Фрукты свежие | F203: 140 | G203: 0.5 | H203: 0.5 | I203: 13.7 | J203: 62 | K203: 338
D205: итого | F205: =SUM(F201:F204) -> 520 | G205: =SUM(G201:G204) -> 10.6 | H205: =SUM(H201:H204) -> 19.5 | I205: =SUM(I201:I204) -> 113.2 | J205: =SUM(J201:J204) -> 677 | L205: 96.63
A206: =A201 -> 3 | B206: =B201 -> 3 | C206: Обед | D206: 1 блюдо | E206: Борщ со свежей капустой и картофелем с зеленью | F206: 200 | G206: 1.4 | H206: 3.9 | I206: 7.9 | J206: 72 | K206: 82
D207: 2 блюдо | E207: Котлета рыбная | F207: 100 | G207: 15.3 | H207: 12.5 | I207: 18.4 | J207: 246 | K207: 234
D208: 2 блюдо | E208: Пюре картофельное | F208: 150 | G208: 3.1 | H208: 5.2 | I208: 12.1 | J208: 108 | K208: 312
D209: закуска | E209: Капуста квашеная с маслом растительным, сахаром (доп.гарнир) | F209: 60 | G209: 0.9 | H209: 3.0 | I209: 6.8 | J209: 59 | K209: ТТК 275
D210: сладкое | E210: Кекс для детского питания | F210: 28 | G210: 1.7 | H210: 6.2 | I210: 15.7 | J210: 124 | K210: 348
D211: напиток | E211: Сок фруктовый | F211: 200 | G211: 0.2 | H211: 0.1 | I211: 10.1 | J211: 41 | K211: ТТК 206
D212: хлеб бел. | E212: Батон витаминный с микронутриентами | F212: 22 | G212: 1.8 | H212: 0.4 | I212: 12.6 | J212: 62
D213: хлеб черн. | E213: Хлеб полезный с микронутриентами | F213: 25 | G213: 1.8 | H213: 0.3 | I213: 10.8 | J213: 53
D216: итого | F216: =SUM(F206:F215) -> 785 | G216: =SUM(G206:G215) -> 26.2 | H216: =SUM(H206:H215) -> 31.6 | I216: =SUM(I206:I215) -> 94.3 | J216: =SUM(J206:J215) -> 765 | L216: 115.63
A217: =A201 -> 3 | B217: =B201 -> 3 | C217: Итого за день: | F217: =F205+F216 -> 1305 | G217: =G205+G216 -> 36.8 | H217: =H205+H216 -> 51.1 | I217: =I205+I216 -> 207.5 | J217: =J205+J216 -> 1442 | L217: =L205+L216 -> 212.26
A218: 3 | B218: 4 | C218: Завтрак | D218: гор.блюдо | E218: Бутерброд горячий с сыром | F218: 45 | G218: 7.2 | H218: 11.0 | I218: 11.5 | J218: 173 | K218: 10/2004
D219: гор.блюдо | E219: Каша молочная пшённая с маслом | F219: 155 | G219: 4.9 | H219: 6.6 | I219: 21.5 | J219: 164 | K219: 182
D220: гор.напиток | E220: Какао с молоком | F220: 200 | G220: 3.6 | H220: 3.0 | I220: 20.8 | J220: 124 | K220: 382
D221: кисломол. | E221: Кисломолочный продукт "Биолакт" | F221: 100 | G221: 2.8 | H221: 3.2 | I221: 8.0 | J221: 75
D222: хлеб бел. | E222: Батон витаминный с микронутриентами | F222: 23 | G222: 1.8 | H222: 0.5 | I222: 13.2 | J222: 64
D224: итого | F224: =SUM(F218:F223) -> 523 | G224: =SUM(G218:G223) -> 20.3 | H224: =SUM(H218:H223) -> 24.3 | I224: =SUM(I218:I223) -> 75.0 | J224: =SUM(J218:J223) -> 600 | L224: 96.63
A225: =A218 -> 3 | B225: =B218 -> 4 | C225: Обед | D225: 1 блюдо | E225: Суп Минестроне | F225: 200 | G225: 2.4 | H225: 4.2 | I225: 10.8 | J225: 90 | K225: ТТК 83
D226: 2 блюдо | E226: Бефстроганов из куриного филе в сырном соусе | F226: 100 | G226: 13.6 | H226: 8.0 | I226: 3.3 | J226: 140 | K226: ТТК 99
D227: 2 блюдо | E227: Рожки отварные | F227: 150 | G227: 5.4 | H227: 4.9 | I227: 27.9 | J227: 178 | K227: 309
D228: фрукты | E228: Фрукты свежие | F228: 140 | G228: 0.5 | H228: 0.5 | I228: 13.7 | J228: 62 | K228: 338
D229: напиток | E229: Кисель плодово-ягодный витаминизированный | F229: 200 | G229: 0.0 | H229: 0.0 | I229: 28.0 | J229: 112 | K229: ТТК 243
D230: хлеб бел. | E230: Батон витаминный с микронутриентами | F230: 54 | G230: 4.3 | H230: 1.1 | I230: 30.9 | J230: 151
D231: хлеб черн. | E231: Хлеб полезный с микронутриентами | F231: 25 | G231: 1.8 | H231: 0.3 | I231: 10.8 | J231: 53
D234: итого | F234: =SUM(F225:F233) -> 869 | G234: =SUM(G225:G233) -> 28.0 | H234: =SUM(H225:H233) -> 19.0 | I234: =SUM(I225:I233) -> 125.4 | J234: =SUM(J225:J233) -> 786 | L234: 115.63
A235: =A218 -> 3 | B235: =B218 -> 4 | C235: Итого за день: | F235: =F224+F234 -> 1392 | G235: =G224+G234 -> 48.3 | H235: =H224+H234 -> 43.3 | I235: =I224+I234 -> 200.4 | J235: =J224+J234 -> 1386 | L235: =L224+L234 -> 212.26
A236: 3 | B236: 5 | C236: Завтрак | D236: гор.блюдо | E236: Котлета куриная | F236: 90 | G236: 14.6 | H236: 7.9 | I236: 5.2 | J236: 156 | K236: ТТК499
... 83 more rows
